[Event "*** SCC Grand Prix: Titled Tuesday Blitz"]
[Site "Chess.com"]
[Date "2020.08.11"]
[Round "3"]
[White "Gorin_Leonid"]
[Black "MFBerna"]
[Result "1-0"]
[WhiteElo "2619"]
[BlackElo "2401"]
[TimeControl "180+1"]
[EndTime "10:29:16 PDT"]
[Termination "Gorin_Leonid won by resignation"]

1. e4 {[%clk 0:02:58.7]} 1... c5 {[%clk 0:02:58.2]} 2. Nf3 {[%clk 0:02:58.3]}
2... d6 {[%clk 0:02:56]} 3. d4 {[%clk 0:02:58.3]} 3... cxd4 {[%clk 0:02:56.9]}
4. Nxd4 {[%clk 0:02:58.3]} 4... Nf6 {[%clk 0:02:57]} 5. f3 {[%clk 0:02:58.3]}
5... e5 {[%clk 0:02:53.9]} 6. Bb5+ {[%clk 0:02:54.9]} 6... Nbd7 {[%clk
0:02:41.8]} 7. Nf5 {[%clk 0:02:53.9]} 7... Qb6 {[%clk 0:02:26.9]} 8. Nc3 {[%clk
0:02:51.9]} 8... g6 {[%clk 0:02:18.6]} 9. Ne3 {[%clk 0:02:51.6]} 9... a6 {[%clk
0:02:07.7]} 10. Ned5 {[%clk 0:02:50.5]} 10... Nxd5 {[%clk 0:02:04.3]} 11. Nxd5
{[%clk 0:02:50.4]} 11... Qd8 {[%clk 0:02:01.5]} 12. Bxd7+ {[%clk 0:02:42.2]}
12... Bxd7 {[%clk 0:02:00.8]} 13. Be3 {[%clk 0:02:42.6]} 13... Rc8 {[%clk
0:01:45.3]} 14. Bb6 {[%clk 0:02:33.1]} 14... Qg5 {[%clk 0:01:45.4]} 15. Qe2
{[%clk 0:02:20.6]} 15... Bb5 {[%clk 0:01:11]} 16. Qf2 {[%clk 0:02:12.8]} 16...
Be7 {[%clk 0:00:39.3]} 17. h4 {[%clk 0:02:04.7]} 17... Qh6 {[%clk 0:00:38.5]}
18. Be3 {[%clk 0:01:55.5]} 18... Qg7 {[%clk 0:00:38]} 19. O-O-O {[%clk
0:01:54.3]} 19... Bc6 {[%clk 0:00:35.5]} 20. h5 {[%clk 0:01:52.9]} 20... g5
{[%clk 0:00:35.4]} 21. g4 {[%clk 0:01:46.7]} 21... h6 {[%clk 0:00:35.3]} 22. Kb1
{[%clk 0:01:44.4]} 22... Bxd5 {[%clk 0:00:35.5]} 23. Rxd5 {[%clk 0:01:44]} 23...
O-O {[%clk 0:00:33.5]} 24. Rhd1 {[%clk 0:01:43.6]} 24... Qf6 {[%clk 0:00:33.5]}
25. Qe2 {[%clk 0:01:40.6]} 25... Rc6 {[%clk 0:00:33.4]} 26. Bc1 {[%clk
0:01:34.8]} 26... Rfc8 {[%clk 0:00:33.5]} 27. c3 {[%clk 0:01:35]} 27... Qe6
{[%clk 0:00:33.9]} 28. Qd3 {[%clk 0:01:33.4]} 28... b5 {[%clk 0:00:34]} 29. Be3
{[%clk 0:01:30.5]} 29... R8c7 {[%clk 0:00:29.2]} 30. a3 {[%clk 0:01:26.6]} 30...
Qc8 {[%clk 0:00:28.2]} 31. Kc2 {[%clk 0:01:19.8]} 31... Qb7 {[%clk 0:00:25.4]}
32. Kd2 {[%clk 0:01:19.8]} 32... Rc4 {[%clk 0:00:23.7]} 33. Ke2 {[%clk
0:01:19.2]} 33... a5 {[%clk 0:00:22.8]} 34. Bd2 {[%clk 0:01:09.8]} 34... Qb6
{[%clk 0:00:21.7]} 35. b3 {[%clk 0:01:08.7]} 35... R4c5 {[%clk 0:00:19.7]} 36.
Be3 {[%clk 0:01:06.4]} 36... Rxd5 {[%clk 0:00:14.4]} 37. Bxb6 {[%clk 0:01:06]}
37... Rxd3 {[%clk 0:00:14.3]} 38. Rxd3 {[%clk 0:01:04.5]} 38... Rc6 {[%clk
0:00:11.4]} 39. Bxa5 {[%clk 0:01:04.3]} 39... Kf8 {[%clk 0:00:10]} 40. Rd5
{[%clk 0:01:04]} 40... Rc5 {[%clk 0:00:06.2]} 41. Rxc5 {[%clk 0:01:01.4]} 41...
dxc5 {[%clk 0:00:07.1]} 42. Kd3 {[%clk 0:01:00.9]} 42... c4+ {[%clk 0:00:05]}
43. bxc4 {[%clk 0:01:00.5]} 43... bxc4+ {[%clk 0:00:05.9]} 44. Kxc4 {[%clk
0:01:00.6]} 44... Bxa3 {[%clk 0:00:06.8]} 45. Kd5 {[%clk 0:01:00.6]} 45... f6
{[%clk 0:00:05.1]} 46. Ke6 {[%clk 0:01:00.4]} 46... Kg7 {[%clk 0:00:05.2]} 47.
Bd8 {[%clk 0:00:59.4]} 1-0

[Event "*** SCC Grand Prix: Titled Tuesday Blitz"]
[Site "Chess.com"]
[Date "2020.08.11"]
[Round "3"]
[White "Maksimus1998"]
[Black "alfiefischer77"]
[Result "1-0"]
[WhiteElo "2520"]
[BlackElo "2289"]
[TimeControl "180+1"]
[EndTime "10:29:16 PDT"]
[Termination "Maksimus1998 won by resignation"]

1. e4 {[%clk 0:03:00.9]} 1... c5 {[%clk 0:02:59.6]} 2. Nf3 {[%clk 0:03:00.6]}
2... e6 {[%clk 0:02:59.9]} 3. g3 {[%clk 0:02:59.4]} 3... Nc6 {[%clk 0:02:58]} 4.
Bg2 {[%clk 0:02:59.4]} 4... Nf6 {[%clk 0:02:58.2]} 5. Qe2 {[%clk 0:02:58.5]}
5... d5 {[%clk 0:02:52.6]} 6. exd5 {[%clk 0:02:57.4]} 6... Nxd5 {[%clk
0:02:52.1]} 7. O-O {[%clk 0:02:56.8]} 7... Be7 {[%clk 0:02:50.2]} 8. Rd1 {[%clk
0:02:46.2]} 8... O-O {[%clk 0:02:44.9]} 9. d4 {[%clk 0:02:45.7]} 9... cxd4
{[%clk 0:02:28.1]} 10. Nxd4 {[%clk 0:02:46.6]} 10... Nxd4 {[%clk 0:02:16.2]} 11.
Rxd4 {[%clk 0:02:47.5]} 11... Bc5 {[%clk 0:02:06.1]} 12. Rd1 {[%clk 0:02:46.9]}
12... Qb6 {[%clk 0:02:05.5]} 13. c4 {[%clk 0:02:43]} 13... Nf6 {[%clk
0:01:59.3]} 14. Nc3 {[%clk 0:02:42.4]} 14... Bd7 {[%clk 0:01:36.4]} 15. Bg5
{[%clk 0:02:41.8]} 15... Bc6 {[%clk 0:01:24.3]} 16. Bxc6 {[%clk 0:02:34.1]}
16... Qxc6 {[%clk 0:01:23.6]} 17. Bxf6 {[%clk 0:02:33.6]} 17... gxf6 {[%clk
0:01:24.5]} 18. Ne4 {[%clk 0:02:33.5]} 18... f5 {[%clk 0:01:15.8]} 19. Nxc5
{[%clk 0:02:31.7]} 19... Qxc5 {[%clk 0:01:15.8]} 20. a3 {[%clk 0:02:29.7]} 20...
Rac8 {[%clk 0:01:11.7]} 21. Rac1 {[%clk 0:02:28.5]} 21... Rfd8 {[%clk
0:01:04.4]} 22. b4 {[%clk 0:02:27]} 22... Rxd1+ {[%clk 0:01:01.9]} 23. Qxd1
{[%clk 0:02:27.9]} 23... Qe5 {[%clk 0:00:55.9]} 24. Qd2 {[%clk 0:02:24.7]} 24...
Qf6 {[%clk 0:00:51.6]} 25. c5 {[%clk 0:02:23.4]} 25... Rd8 {[%clk 0:00:48.5]}
26. Qe2 {[%clk 0:02:19.2]} 26... e5 {[%clk 0:00:44.6]} 27. Rd1 {[%clk
0:02:19.1]} 27... e4 {[%clk 0:00:36.7]} 28. b5 {[%clk 0:02:04.4]} 28... Rxd1+
{[%clk 0:00:22.8]} 29. Qxd1 {[%clk 0:02:04.1]} 29... Qc3 {[%clk 0:00:23.6]} 30.
Qd8+ {[%clk 0:02:03.8]} 30... Kg7 {[%clk 0:00:23.5]} 31. Qg5+ {[%clk 0:02:03.9]}
31... Kf8 {[%clk 0:00:20.7]} 32. Qxf5 {[%clk 0:02:03.7]} 32... Qxa3 {[%clk
0:00:19.7]} 33. c6 {[%clk 0:01:55.8]} 33... bxc6 {[%clk 0:00:18.2]} 34. Qc8+
{[%clk 0:01:56]} 34... Kg7 {[%clk 0:00:18.1]} 35. bxc6 {[%clk 0:01:56.9]} 35...
Qc1+ {[%clk 0:00:17.5]} 36. Kg2 {[%clk 0:01:56.5]} 36... Qc3 {[%clk 0:00:17.4]}
37. Qg4+ {[%clk 0:01:53.8]} 37... Kf8 {[%clk 0:00:17.1]} 38. Qxe4 {[%clk
0:01:54]} 38... a5 {[%clk 0:00:17.7]} 39. Qd5 {[%clk 0:01:52.2]} 39... a4 {[%clk
0:00:15.5]} 40. Qd6+ {[%clk 0:01:50.4]} 40... Kg7 {[%clk 0:00:15.1]} 41. c7
{[%clk 0:01:43.8]} 41... a3 {[%clk 0:00:15.5]} 42. Qd7 {[%clk 0:01:42]} 42... a2
{[%clk 0:00:13]} 43. c8=Q {[%clk 0:01:39.7]} 43... Qxc8 {[%clk 0:00:10.4]} 44.
Qxc8 {[%clk 0:01:40.6]} 44... a1=Q {[%clk 0:00:10.5]} 45. h4 {[%clk 0:01:39.7]}
45... Qd1 {[%clk 0:00:09.3]} 46. Qf5 {[%clk 0:01:38.7]} 46... Qd4 {[%clk
0:00:09]} 47. h5 {[%clk 0:01:37.8]} 47... h6 {[%clk 0:00:09.1]} 48. g4 {[%clk
0:01:35.7]} 48... Qc4 {[%clk 0:00:08.1]} 49. Qe5+ {[%clk 0:01:33.9]} 49... Kh7
{[%clk 0:00:08.4]} 50. Kg3 {[%clk 0:01:30.4]} 50... Qd3+ {[%clk 0:00:08.1]} 51.
f3 {[%clk 0:01:29.9]} 51... Qd1 {[%clk 0:00:07.7]} 52. Qe4+ {[%clk 0:01:18.4]}
52... Kg7 {[%clk 0:00:07.5]} 53. Kf4 {[%clk 0:01:10.3]} 53... Qd2+ {[%clk
0:00:06.7]} 54. Qe3 {[%clk 0:01:09.6]} 54... Qd6+ {[%clk 0:00:06.7]} 55. Qe5+
{[%clk 0:01:09.4]} 55... Qxe5+ {[%clk 0:00:07]} 56. Kxe5 {[%clk 0:01:10.3]} 1-0

[Event "*** SCC Grand Prix: Titled Tuesday Blitz"]
[Site "Chess.com"]
[Date "2020.08.11"]
[Round "3"]
[White "secretsuperstar7"]
[Black "goofypenguin96"]
[Result "1-0"]
[WhiteElo "2102"]
[BlackElo "2299"]
[TimeControl "180+1"]
[EndTime "10:29:21 PDT"]
[Termination "secretsuperstar7 won by checkmate"]

1. d4 {[%clk 0:03:00.9]} 1... c5 {[%clk 0:02:58.5]} 2. d5 {[%clk 0:02:56]} 2...
d6 {[%clk 0:02:58.8]} 3. Nf3 {[%clk 0:02:50.7]} 3... Nf6 {[%clk 0:02:58.9]} 4.
c4 {[%clk 0:02:47.7]} 4... b5 {[%clk 0:02:57.5]} 5. cxb5 {[%clk 0:02:45.3]} 5...
g6 {[%clk 0:02:57.4]} 6. Nc3 {[%clk 0:02:44.8]} 6... Bg7 {[%clk 0:02:57.2]} 7.
g3 {[%clk 0:02:44.3]} 7... O-O {[%clk 0:02:53.8]} 8. Bg2 {[%clk 0:02:44.3]} 8...
Bb7 {[%clk 0:02:51.8]} 9. O-O {[%clk 0:02:39.7]} 9... e6 {[%clk 0:02:51.9]} 10.
dxe6 {[%clk 0:02:29.4]} 10... fxe6 {[%clk 0:02:52.8]} 11. Ng5 {[%clk 0:02:03.8]}
11... Bxg2 {[%clk 0:02:51.3]} 12. Kxg2 {[%clk 0:02:02.7]} 12... Qd7 {[%clk
0:02:49.6]} 13. e4 {[%clk 0:01:58.7]} 13... h6 {[%clk 0:02:39.4]} 14. Nf3 {[%clk
0:01:57.3]} 14... Ng4 {[%clk 0:02:38.8]} 15. h3 {[%clk 0:01:49.5]} 15... Nf6
{[%clk 0:02:30]} 16. Be3 {[%clk 0:01:34.6]} 16... Qe7 {[%clk 0:02:23]} 17. e5
{[%clk 0:01:23.1]} 17... dxe5 {[%clk 0:02:21.9]} 18. Nxe5 {[%clk 0:01:22.9]}
18... Qb7+ {[%clk 0:02:20.8]} 19. Kh2 {[%clk 0:01:22.2]} 19... g5 {[%clk
0:02:15.9]} 20. Bxc5 {[%clk 0:01:16.5]} 20... Rc8 {[%clk 0:02:15.6]} 21. Be3
{[%clk 0:01:11.2]} 21... Nd5 {[%clk 0:02:15.3]} 22. Nxd5 {[%clk 0:00:58.3]}
22... exd5 {[%clk 0:02:16.2]} 23. Bd4 {[%clk 0:00:39.7]} 23... Qxb5 {[%clk
0:01:46.3]} 24. Qg4 {[%clk 0:00:18.2]} 24... Qe8 {[%clk 0:01:39.7]} 25. Rfe1
{[%clk 0:00:16.8]} 25... Na6 {[%clk 0:01:38.3]} 26. h4 {[%clk 0:00:14.3]} 26...
Nb4 {[%clk 0:01:10]} 27. hxg5 {[%clk 0:00:13.8]} 27... h5 {[%clk 0:01:10.1]} 28.
Qf3 {[%clk 0:00:10.9]} 28... Nc2 {[%clk 0:01:08.5]} 29. Qxd5+ {[%clk 0:00:10.9]}
29... Kh8 {[%clk 0:01:00.6]} 30. Nf7+ {[%clk 0:00:09.3]} 30... Kh7 {[%clk
0:01:00.3]} 31. Qf5+ {[%clk 0:00:08.1]} 31... Kg8 {[%clk 0:00:59.6]} 32. Rxe8+
{[%clk 0:00:08.2]} 32... Rxe8 {[%clk 0:00:59.6]} 33. Bxg7 {[%clk 0:00:06.6]}
33... Re2 {[%clk 0:00:59.3]} 34. Nh6+ {[%clk 0:00:05.2]} 34... Kxg7 {[%clk
0:00:54.2]} 35. Qf6+ {[%clk 0:00:05.6]} 35... Kh7 {[%clk 0:00:54]} 36. Qf7+
{[%clk 0:00:04.5]} 36... Kh8 {[%clk 0:00:54.6]} 37. Qf5 {[%clk 0:00:03.9]} 37...
Nxa1 {[%clk 0:00:51.2]} 38. Nf7+ {[%clk 0:00:03.7]} 38... Kg7 {[%clk 0:00:51.4]}
39. Qf6+ {[%clk 0:00:03.6]} 39... Kf8 {[%clk 0:00:50.6]} 40. Ne5+ {[%clk
0:00:03.1]} 40... Ke8 {[%clk 0:00:47.5]} 41. Qf7+ {[%clk 0:00:03.4]} 41... Kd8
{[%clk 0:00:48.4]} 42. Qd7# {[%clk 0:00:04]} 1-0

[Event "*** SCC Grand Prix: Titled Tuesday Blitz"]
[Site "Chess.com"]
[Date "2020.08.11"]
[Round "3"]
[White "Sn00pPawn"]
[Black "ferch1ni"]
[Result "0-1"]
[WhiteElo "1998"]
[BlackElo "2281"]
[TimeControl "180+1"]
[EndTime "10:29:21 PDT"]
[Termination "ferch1ni won on time"]

1. e4 {[%clk 0:03:00.9]} 1... c5 {[%clk 0:02:59.8]} 2. Nf3 {[%clk 0:03:00.9]}
2... Nc6 {[%clk 0:02:59.5]} 3. Bb5 {[%clk 0:02:59.9]} 3... a6 {[%clk 0:02:56.5]}
4. Bxc6 {[%clk 0:02:50]} 4... dxc6 {[%clk 0:02:57.4]} 5. d3 {[%clk 0:02:45.2]}
5... Qc7 {[%clk 0:02:57.2]} 6. Be3 {[%clk 0:02:33.8]} 6... e5 {[%clk 0:02:51.8]}
7. Nbd2 {[%clk 0:02:24.5]} 7... Nf6 {[%clk 0:02:42.6]} 8. Nb3 {[%clk 0:02:21.6]}
8... h6 {[%clk 0:02:38.3]} 9. Nxc5 {[%clk 0:01:53.6]} 9... b6 {[%clk 0:02:36.2]}
10. Nb3 {[%clk 0:01:50.8]} 10... c5 {[%clk 0:02:36.4]} 11. a4 {[%clk 0:01:36.5]}
11... Be6 {[%clk 0:02:35.2]} 12. Nfd2 {[%clk 0:01:34.1]} 12... Be7 {[%clk
0:02:30.5]} 13. h3 {[%clk 0:01:32.6]} 13... O-O {[%clk 0:02:19.6]} 14. O-O
{[%clk 0:01:30.8]} 14... Rfd8 {[%clk 0:02:15.8]} 15. Qe2 {[%clk 0:01:27.4]}
15... b5 {[%clk 0:02:13.8]} 16. f4 {[%clk 0:01:14.5]} 16... exf4 {[%clk
0:02:09.7]} 17. Bxf4 {[%clk 0:01:11.5]} 17... Qc6 {[%clk 0:02:03.3]} 18. axb5
{[%clk 0:00:40.2]} 18... axb5 {[%clk 0:02:01.6]} 19. c4 {[%clk 0:00:40.5]} 19...
Rxa1 {[%clk 0:01:45.7]} 20. Rxa1 {[%clk 0:00:36.3]} 20... Nd7 {[%clk 0:00:58.8]}
21. Na5 {[%clk 0:00:21.8]} 21... Qb6 {[%clk 0:00:46]} 22. cxb5 {[%clk
0:00:20.2]} 22... Qxb5 {[%clk 0:00:43.1]} 23. Nac4 {[%clk 0:00:18.5]} 23... Qc6
{[%clk 0:00:27.5]} 24. Ra7 {[%clk 0:00:12.4]} 24... Bf8 {[%clk 0:00:23.9]} 25.
Qd1 {[%clk 0:00:09.4]} 25... Nb6 {[%clk 0:00:24]} 26. Ra6 {[%clk 0:00:08.1]}
26... Bxc4 {[%clk 0:00:15.9]} 27. Nxc4 {[%clk 0:00:06.5]} 27... Qxe4 {[%clk
0:00:15.9]} 28. dxe4 {[%clk 0:00:02.4]} 28... Rxd1+ {[%clk 0:00:15.1]} 29. Kh2
{[%clk 0:00:01.4]} 29... Nxc4 {[%clk 0:00:15.3]} 30. b3 {[%clk 0:00:01.3]} 30...
Nd2 {[%clk 0:00:14.6]} 0-1

[Event "*** SCC Grand Prix: Titled Tuesday Blitz"]
[Site "Chess.com"]
[Date "2020.08.11"]
[Round "3"]
[White "esrosenberg"]
[Black "SzMM19"]
[Result "0-1"]
[WhiteElo "2164"]
[BlackElo "2484"]
[TimeControl "180+1"]
[EndTime "10:29:22 PDT"]
[Termination "SzMM19 won by resignation"]

1. Nf3 {[%clk 0:03:00.9]} 1... c5 {[%clk 0:02:59.7]} 2. c4 {[%clk 0:03:00.1]}
2... Nc6 {[%clk 0:02:59.6]} 3. g3 {[%clk 0:02:56.4]} 3... e5 {[%clk 0:02:58.4]}
4. Nc3 {[%clk 0:02:54.5]} 4... g6 {[%clk 0:02:58.3]} 5. Bg2 {[%clk 0:02:54.3]}
5... Bg7 {[%clk 0:02:56.4]} 6. O-O {[%clk 0:02:54.6]} 6... d6 {[%clk 0:02:55.7]}
7. a3 {[%clk 0:02:53.5]} 7... a5 {[%clk 0:02:52.2]} 8. d3 {[%clk 0:02:44.8]}
8... Nge7 {[%clk 0:02:51.8]} 9. Rb1 {[%clk 0:02:44.6]} 9... O-O {[%clk
0:02:51.2]} 10. Ne1 {[%clk 0:02:33.9]} 10... Be6 {[%clk 0:02:50.5]} 11. Nc2
{[%clk 0:02:32.2]} 11... d5 {[%clk 0:02:50.8]} 12. cxd5 {[%clk 0:02:31.1]} 12...
Nxd5 {[%clk 0:02:51.7]} 13. Ne3 {[%clk 0:02:26.9]} 13... Nce7 {[%clk 0:02:51.6]}
14. Ne4 {[%clk 0:02:20.2]} 14... b6 {[%clk 0:02:45]} 15. Ng5 {[%clk 0:02:13.8]}
15... Bc8 {[%clk 0:02:44.5]} 16. b4 {[%clk 0:01:44.8]} 16... h6 {[%clk
0:02:37.6]} 17. Ne4 {[%clk 0:01:08.3]} 17... cxb4 {[%clk 0:02:22.6]} 18. Nxd5
{[%clk 0:01:05.7]} 18... Nxd5 {[%clk 0:02:16.5]} 19. axb4 {[%clk 0:01:05.7]}
19... axb4 {[%clk 0:02:15.7]} 20. Bb2 {[%clk 0:00:43.2]} 20... Be6 {[%clk
0:02:10.9]} 21. Rc1 {[%clk 0:00:35.3]} 21... Ra2 {[%clk 0:02:07.9]} 22. Ba1
{[%clk 0:00:30.7]} 22... Qe7 {[%clk 0:01:57.8]} 23. e3 {[%clk 0:00:24.6]} 23...
Kh7 {[%clk 0:01:44.4]} 24. Rc6 {[%clk 0:00:23.6]} 24... Rfa8 {[%clk 0:01:41.1]}
25. h4 {[%clk 0:00:18.6]} 25... Rxa1 {[%clk 0:01:36.9]} 26. Qxa1 {[%clk
0:00:19.5]} 26... Rxa1 {[%clk 0:01:37]} 27. Rxa1 {[%clk 0:00:20.4]} 27... b3
{[%clk 0:01:26.9]} 28. Nd2 {[%clk 0:00:16.9]} 28... b2 {[%clk 0:01:16.8]} 29.
Rb1 {[%clk 0:00:17]} 29... Nb4 {[%clk 0:00:56.4]} 30. Rxb6 {[%clk 0:00:13.9]}
30... Nxd3 {[%clk 0:00:53.6]} 31. Rb7 {[%clk 0:00:13.3]} 31... Qa3 {[%clk
0:00:51]} 32. Be4 {[%clk 0:00:08.6]} 32... Qc3 {[%clk 0:00:44.6]} 33. Nf3 {[%clk
0:00:05.2]} 33... Ba2 {[%clk 0:00:42.4]} 34. Bxd3 {[%clk 0:00:04.2]} 34... Bxb1
{[%clk 0:00:42.4]} 35. Bxb1 {[%clk 0:00:04.8]} 35... Qc1+ {[%clk 0:00:42.2]} 36.
Kg2 {[%clk 0:00:05.3]} 36... Qxb1 {[%clk 0:00:42.4]} 37. Rxf7 {[%clk 0:00:05]}
37... Qe4 {[%clk 0:00:41]} 0-1

[Event "*** SCC Grand Prix: Titled Tuesday Blitz"]
[Site "Chess.com"]
[Date "2020.08.11"]
[Round "3"]
[White "Fy_Rakotomaharo"]
[Black "gmmoranda"]
[Result "0-1"]
[WhiteElo "2668"]
[BlackElo "2907"]
[TimeControl "180+1"]
[EndTime "10:29:24 PDT"]
[Termination "gmmoranda won on time"]

1. e4 {[%clk 0:03:00.9]} 1... d6 {[%clk 0:03:00.4]} 2. d4 {[%clk 0:03:00.6]}
2... Nf6 {[%clk 0:03:01]} 3. Nc3 {[%clk 0:03:01.1]} 3... e5 {[%clk 0:03:01.6]}
4. Nf3 {[%clk 0:03:00.1]} 4... Nbd7 {[%clk 0:03:01.9]} 5. Bc4 {[%clk 0:03:00.6]}
5... Be7 {[%clk 0:03:02.5]} 6. O-O {[%clk 0:03:00.7]} 6... O-O {[%clk
0:03:03.1]} 7. a4 {[%clk 0:03:01.4]} 7... a5 {[%clk 0:03:02.9]} 8. Re1 {[%clk
0:03:01.3]} 8... c6 {[%clk 0:03:03.2]} 9. h3 {[%clk 0:03:01.5]} 9... h6 {[%clk
0:03:02.9]} 10. Be3 {[%clk 0:02:59.8]} 10... Re8 {[%clk 0:03:02.8]} 11. Qd2
{[%clk 0:02:49.8]} 11... exd4 {[%clk 0:02:59.5]} 12. Bxd4 {[%clk 0:02:48.6]}
12... Nf8 {[%clk 0:02:55.5]} 13. Rad1 {[%clk 0:02:39.9]} 13... Be6 {[%clk
0:02:53.1]} 14. Bf1 {[%clk 0:02:36.1]} 14... Ng6 {[%clk 0:02:19.6]} 15. Qe3
{[%clk 0:02:14.7]} 15... d5 {[%clk 0:02:12.1]} 16. exd5 {[%clk 0:02:02]} 16...
Nxd5 {[%clk 0:02:08.8]} 17. Nxd5 {[%clk 0:02:02.1]} 17... Bxd5 {[%clk
0:02:09.7]} 18. c4 {[%clk 0:01:57.7]} 18... Bxf3 {[%clk 0:02:06.6]} 19. Qxf3
{[%clk 0:01:57.7]} 19... Qc7 {[%clk 0:01:35.4]} 20. c5 {[%clk 0:01:38.8]} 20...
Qf4 {[%clk 0:01:21.4]} 21. Qc3 {[%clk 0:01:29.8]} 21... Bf8 {[%clk 0:01:16.5]}
22. g3 {[%clk 0:01:26.7]} 22... Qf5 {[%clk 0:01:11.8]} 23. Rxe8 {[%clk
0:01:12.8]} 23... Rxe8 {[%clk 0:01:12.7]} 24. Qxa5 {[%clk 0:01:13.2]} 24... Qc2
{[%clk 0:00:52.8]} 25. Rd3 {[%clk 0:00:40.7]} 25... Qc1 {[%clk 0:00:46.6]} 26.
Re3 {[%clk 0:00:39.6]} 26... Rxe3 {[%clk 0:00:41.7]} 27. Bxe3 {[%clk 0:00:40.5]}
27... Qxb2 {[%clk 0:00:42.4]} 28. Qd8 {[%clk 0:00:32.1]} 28... Ne5 {[%clk
0:00:39.4]} 29. Kg2 {[%clk 0:00:26.2]} 29... Qc2 {[%clk 0:00:35.5]} 30. Qd4
{[%clk 0:00:23.6]} 30... Ng6 {[%clk 0:00:31.7]} 31. Bd3 {[%clk 0:00:20.4]} 31...
Qb3 {[%clk 0:00:28.6]} 32. Bc4 {[%clk 0:00:18.6]} 32... Qc2 {[%clk 0:00:25.5]}
33. h4 {[%clk 0:00:11]} 33... Ne7 {[%clk 0:00:23.8]} 34. Qg4 {[%clk 0:00:05.5]}
34... Nf5 {[%clk 0:00:19.7]} 0-1

[Event "*** SCC Grand Prix: Titled Tuesday Blitz"]
[Site "Chess.com"]
[Date "2020.08.11"]
[Round "3"]
[White "kidagent"]
[Black "Na_binci"]
[Result "1-0"]
[WhiteElo "2268"]
[BlackElo "1945"]
[TimeControl "180+1"]
[EndTime "10:29:24 PDT"]
[Termination "kidagent won on time"]

1. e4 {[%clk 0:03:00.9]} 1... c5 {[%clk 0:02:59]} 2. Nf3 {[%clk 0:03:00.9]} 2...
d6 {[%clk 0:02:59.1]} 3. d4 {[%clk 0:03:01.6]} 3... cxd4 {[%clk 0:03:00]} 4.
Nxd4 {[%clk 0:03:02]} 4... Nf6 {[%clk 0:03:00.2]} 5. Nc3 {[%clk 0:03:02.5]} 5...
g6 {[%clk 0:03:00.6]} 6. Be3 {[%clk 0:03:00.8]} 6... Bg7 {[%clk 0:03:00.7]} 7.
f3 {[%clk 0:03:00.1]} 7... O-O {[%clk 0:03:00.5]} 8. Qd2 {[%clk 0:03:00.7]} 8...
Nc6 {[%clk 0:03:00.8]} 9. O-O-O {[%clk 0:02:59.1]} 9... d5 {[%clk 0:03:00.6]}
10. exd5 {[%clk 0:02:56.6]} 10... Nxd5 {[%clk 0:03:00.4]} 11. Nxd5 {[%clk
0:02:56.1]} 11... Qxd5 {[%clk 0:02:58.7]} 12. Nxc6 {[%clk 0:02:55.4]} 12... Qxc6
{[%clk 0:02:57]} 13. Kb1 {[%clk 0:02:51]} 13... Bf5 {[%clk 0:02:27.4]} 14. Bd3
{[%clk 0:02:50.2]} 14... Bxd3 {[%clk 0:02:06.9]} 15. Qxd3 {[%clk 0:02:48.8]}
15... Rac8 {[%clk 0:01:52.6]} 16. c3 {[%clk 0:02:44.2]} 16... b5 {[%clk
0:01:49.5]} 17. Qd7 {[%clk 0:02:42]} 17... Qc4 {[%clk 0:01:41.5]} 18. Bd4 {[%clk
0:02:36]} 18... e5 {[%clk 0:01:19.6]} 19. Bxa7 {[%clk 0:02:32.7]} 19... b4
{[%clk 0:01:00.4]} 20. cxb4 {[%clk 0:02:16.6]} 20... Qxb4 {[%clk 0:00:55.2]} 21.
Rc1 {[%clk 0:02:07.2]} 21... e4 {[%clk 0:00:53]} 22. b3 {[%clk 0:02:02.3]} 22...
Qa3 {[%clk 0:00:29]} 23. Bd4 {[%clk 0:02:00.4]} 23... Rcd8 {[%clk 0:00:27.7]}
24. Qa7 {[%clk 0:01:43.9]} 24... Qxa7 {[%clk 0:00:14.8]} 25. Bxa7 {[%clk
0:01:43.2]} 25... Rd2 {[%clk 0:00:13.7]} 26. Rc2 {[%clk 0:01:43]} 26... Rfd8
{[%clk 0:00:08.7]} 27. Be3 {[%clk 0:01:14]} 27... R2d3 {[%clk 0:00:05.9]} 28.
Bc1 {[%clk 0:01:03.7]} 28... exf3 {[%clk 0:00:05.1]} 29. gxf3 {[%clk 0:01:03.6]}
29... Rxf3 {[%clk 0:00:06]} 30. Bb2 {[%clk 0:00:54.4]} 30... Ra8 {[%clk
0:00:05.6]} 31. Bxg7 {[%clk 0:00:53.2]} 31... Kxg7 {[%clk 0:00:06.5]} 32. Kb2
{[%clk 0:00:51.7]} 32... Rf4 {[%clk 0:00:05.9]} 33. a4 {[%clk 0:00:50.7]} 33...
h5 {[%clk 0:00:06.1]} 34. Ka3 {[%clk 0:00:46.9]} 34... h4 {[%clk 0:00:05.6]} 35.
h3 {[%clk 0:00:46.3]} 35... g5 {[%clk 0:00:05.7]} 36. Rg1 {[%clk 0:00:45.7]}
36... Kg6 {[%clk 0:00:04.9]} 37. Rc4 {[%clk 0:00:41.6]} 37... Rf3 {[%clk
0:00:02.7]} 38. Rxh4 {[%clk 0:00:39.9]} 38... f5 {[%clk 0:00:01.9]} 39. Rc4
{[%clk 0:00:35.7]} 39... Re8 {[%clk 0:00:02.2]} 40. a5 {[%clk 0:00:30.8]} 40...
Ree3 {[%clk 0:00:01.4]} 41. Rb4 {[%clk 0:00:30.8]} 1-0